Cogmind - Beta 14 @@@ ROGUE MODE // 2024.11.27 @ 19:10:32 Player: skye Result: Destroyed by B-75 Beast with Heavy Plasma Cannon Performance ------------- Evolutions (4) 2000 Regions Visited (12) 2400 Robots Destroyed (116) 580 Value Destroyed (3141) 3141 Prototype IDs (33) 660 Alien Tech Used (0) 0 Bonus (525) 525 TOTAL SCORE: 9306 Bonus ------- High Alert Combat Kills 83 Follower Combat Kills 142 Aligned with FarCom 300 Cogmind --------- Core Integrity 0/850 Matter 282/300 Energy 12/100 System Corruption 0% Temperature Cool (12) Movement Core (50) Location -6/Extension Parts ------- > --- POWER (1) -------- (None) > --- PROPULSION (6) --- (None) > --- UTILITY (6) ------ Improved Terrain Scan Processor Hacking Suite Hacking Suite > --- WEAPON (2) ------- (None) > --- INVENTORY (5) ---- Advanced Signal Interpreter System Restoration Module Welding Torch Peak State ------------ > --- POWER ------------ Light Fission Core > --- PROPULSION ------- Improved Flight Unit Improved Flight Unit Improved VTOL Module Xenon Bombardment Thruster Cooled Cesium-ion Thruster Impulse Thruster > --- UTILITY ---------- Advanced Heat Sink Improved Terrain Scanner Improved Terrain Scan Processor Hacking Suite Hacking Suite Improved Hacking Suite > --- WEAPON ----------- Longsword +1 > --- INVENTORY -------- Cooled Ion Engine Advanced Signal Interpreter Improved Reaction Control System Advanced Assault Cannon Missile Launcher [Rating: 64] Favorites ----------- Power Light Ion Engine Engine Light Ion Engine Power Core Micro Nuclear Core Propulsion Light Treads Treads Light Treads Leg Carbon-fiber Leg Wheel Wheel Flight Unit Improved Flight Unit Utility Signal Interpreter Device Advanced Heat Sink Storage High-capacity Storage Unit Processor Signal Interpreter Hackware Hacking Suite Protection Hardened Medium Armor Plating Weapon Beam Cannon Energy Gun Particle Gun Energy Cannon Beam Cannon Ballistic Gun Makeshift Shrapnel Gun Ballistic Cannon Advanced Assault Cannon Launcher Missile Launcher Special Weapon Mining Laser Slashing Weapon Longsword +1 Build | -11 -10 -10 -9 -9 -9 -8 -8 -7 -6 -6 -6 -6 ------- Run | Yrd Mat Min Mat Min Exi Min Mat Fac Fac Was Fac Ext Slots Evolved 8 | . . . 2 . . . 2 2 2 . . . Power . | . . . . . . . . . . . . . Propulsion 4 | . . . 1 . . . . 2 1 . . . Utility 4 | . . . 1 . . . 2 . 1 . . . Weapon . | . . . . . . . . . . . . . Parts Attached 126 | 8 18 3 23 4 . 1 20 18 . . 24 7 Power 18 | 2 2 1 3 . . . 1 1 . . 7 1 Engine 11 | 2 2 1 3 . . . 1 . . . 1 1 Core 7 | . . . . . . . . 1 . . 6 . Reactor . | . . . . . . . . . . . . . Propulsion 41 | 2 3 1 9 2 . . 4 7 . . 12 1 Treads 15 | 1 2 . 7 . . . 3 2 . . . . Leg 1 | . . . . . . . . . . . 1 . Wheel 8 | 1 1 1 2 2 . . 1 . . . . . Hover . | . . . . . . . . . . . . . Flight 17 | . . . . . . . . 5 . . 11 1 Utility 27 | 1 5 . 3 1 . 1 5 8 . . 2 1 Device 13 | . 1 . 2 1 . 1 3 3 . . 1 1 Storage 5 | 1 3 . 1 . . . . . . . . . Processor 3 | . 1 . . . . . . 2 . . . . Hackware 3 | . . . . . . . . 2 . . 1 . Protection 3 | . . . . . . . 2 1 . . . . Artifact . | . . . . . . . . . . . . . Weapon 40 | 3 8 1 8 1 . . 10 2 . . 3 4 Energy Gun 8 | 2 2 . 4 . . . . . . . . . Energy Cannon 7 | . 3 . 1 . . . 3 . . . . . Ballistic Gun 7 | 1 2 1 1 . . . 2 . . . . . Ballistic Cannon 2 | . . . . 1 . . 1 . . . . . Launcher 10 | . . . 2 . . . 3 1 . . 2 2 Special Weapon 1 | . 1 . . . . . . . . . . . Impact Weapon . | . . . . . . . . . . . . . Slashing Weapon 5 | . . . . . . . 1 1 . . 1 2 Piercing Weapon . | . . . . . . . . . . . . . Special Melee Weapon . | . . . . . . . . . . . . . Unidentified Prototypes 6 | . . . 1 1 . . . 3 . . 1 . Parts Lost 36 | . 6 . 8 . . 1 4 4 . . . 13 Power 3 | . 1 . 1 . . . . . . . . 1 Propulsion 20 | . 2 . 6 . . 1 2 3 . . . 6 Utility 6 | . . . . . . . 1 1 . . . 4 Weapon 7 | . 3 . 1 . . . 1 . . . . 2 Highest Loss Streak 11 | . 3 . 2 . . 1 1 2 . . . 11 To Critical Strikes . | . . . . . . . . . . . . . Average Slot Usage (%) 94 | . 92 100 96 100 100 88 93 93 80 80 86 77 Engine 8 | . 11 14 10 11 11 11 9 4 . . . . Treads 16 | . 13 14 22 22 22 11 15 22 . . . . Wheel 8 | . 11 14 8 11 11 11 7 6 . . . . Flight 3 | . . . . . . . . 3 26 26 35 29 Device 8 | . 3 . 9 11 11 11 15 8 13 13 12 10 Storage 10 | . 14 14 12 11 11 11 9 6 . . . . Processor 9 | . 9 14 11 11 11 11 9 7 6 6 6 6 Hackware 1 | . . . . . . . . . 13 13 17 19 Protection 3 | . . . . . . . 9 13 . . . . Energy Gun 2 | . 2 . 3 11 11 11 . . . . . . Energy Cannon 6 | . 9 14 7 . . . 5 6 . . . . Ballistic Gun 6 | . 13 14 8 7 . . 2 . . . . . Ballistic Cannon 2 | . . . . 3 11 11 2 6 . . . . Launcher 1 | . . . 2 . . . 6 . 6 6 . . Peak Build Rating 64 | 6 9 12 17 23 24 24 34 48 47 48 64 58 Average Rating 23 | 5 7 11 14 19 23 18 30 37 47 47 56 49 On Entrance 26 | . 6 9 12 17 23 24 17 32 47 47 48 58 Naked Turns . | . . . . . . . . . . . . . Heaviest Build 90 | 14 47 48 55 63 63 56 90 90 17 17 17 14 Greatest Support 60 | 16 20 10 60 40 12 12 40 26 21 21 34 25 Greatest Overweight (x) 8 | . 4 4 4 5 5 4 8 8 . . . 3 Average Overweight (x) 2 | . 2 4 2 3 5 4 6 5 . . . . Largest Inventory Capacity 20 | 8 20 20 20 20 20 20 20 20 5 5 5 5 Average Capacity 17 | 7 14 20 20 20 20 20 20 18 5 5 5 5 Most Carried 20 | 6 20 20 20 20 20 20 20 20 4 5 5 5 Average Carried 16 | 3 11 19 19 19 20 20 19 18 4 4 4 4 Final Capacity 20 | 8 20 20 20 20 20 20 20 5 5 5 5 5 Final Carried 20 | 6 20 20 20 20 20 20 20 4 4 5 5 3 Class Distribution -------------------- 65% | Scavenger-Mutant 24% | Mutant 5% | Hacker-Scout Dominant Class ---------------- Scavenger-Mutant | -10/Materials Mutant | -10/Mines Scavenger-Mutant | -9/Materials Scavenger-Mutant | -9/Mines Scavenger-Mutant | -9/Exiles Mutant | -8/Mines Scavenger-Mutant | -8/Materials Scavenger-Mutant | -7/Factory Hacker-Scout | -6/Factory Hacker-Scout | -6/Waste Hacker-Scout | -6/Factory Hacker-Sprinter | -6/Extension Resources | -11 -10 -10 -9 -9 -9 -8 -8 -7 -6 -6 -6 -6 ----------- Run | Yrd Mat Min Mat Min Exi Min Mat Fac Fac Was Fac Ext Matter Collected 2270 | 233 325 71 349 46 . 23 497 92 . . 357 277 Remotely . | . . . . . . . . . . . . . Salvage Created 3834 | 43 737 89 1230 24 . 46 813 176 . . 338 338 Parts 221 | 9 36 11 75 4 . 7 34 18 . . 24 3 Haulers Intercepted 5 | . 1 . 2 . . . 2 . . . . . Recyclers Shooed 3 | . 1 . . . . . 2 . . . . . Parts Field Recycled . | . . . . . . . . . . . . . Retrieved Matter . | . . . . . . . . . . . . . Parts Self-Destructed . | . . . . . . . . . . . . . Prevented . | . . . . . . . . . . . . . Kills | -11 -10 -10 -9 -9 -9 -8 -8 -7 -6 -6 -6 -6 ------- Run | Yrd Mat Min Mat Min Exi Min Mat Fac Fac Was Fac Ext Combat Hostiles Destroyed 76 | . 15 3 30 . . 4 16 4 . . 2 2 Melee 2 | . . . . . . . . . . . 2 . Guns 30 | . 10 2 11 . . 3 4 . . . . . Cannons 24 | . 5 1 9 . . 1 4 4 . . . . AOE 18 | . . . 8 . . . 8 . . . . 2 Classes Destroyed 17 | 1 7 1 3 . . . 1 2 . . 2 . Worker 6 | . . 1 2 . . . 2 . . . 1 . Builder 5 | . 1 . 1 . . . 2 1 . . . . Tunneler 6 | 3 . 2 . 1 . . . . . . . . Hauler 5 | . 1 . 2 . . . 2 . . . . . Recycler 7 | . 2 . 1 . . . 1 . . . 1 2 Mechanic 1 | . . . . . . . . . . . 1 . Operator 4 | . 1 . . . . . . 1 . . 2 . Watcher 6 | . 2 . 3 . . . . . . . 1 . Swarmer 18 | . 6 3 5 . . 4 . . . . . . Cutter 1 | . . . . . . . . . . . 1 . Grunt 37 | . 9 . 17 . . . 11 . . . . . Brawler 1 | . . . 1 . . . . . . . . . Protector 1 | . . . 1 . . . . . . . . . Sentry 10 | . . . 6 . . . 2 . . . . 2 Hunter 3 | . . . . . . . 3 . . . . . Programmer 4 | . . . . . . . . 3 . . 1 . Heavy 1 | . . . . . . . . 1 . . . . Best Kill Streak 7 | 1 5 3 7 1 . 2 7 1 . . 2 3 Combat Bots Only 4 | . 3 2 4 . . 2 4 1 . . 1 2 Max Kills in Single Turn 4 | 1 2 2 4 1 . 1 4 1 . . 1 1 Gunslinging 1 | . 1 . . . . . . . . . . . Exploded 3 | . . . 3 . . . 2 . . . . 1 Melee 1 | . . . . . . . . . . . 1 . Uniques/NPCs Destroyed . | . . . . . . . . . . . . . Combat | -11 -10 -10 -9 -9 -9 -8 -8 -7 -6 -6 -6 -6 -------- Run | Yrd Mat Min Mat Min Exi Min Mat Fac Fac Was Fac Ext Hostile Shots Fired 796 | . 119 22 172 . . 37 117 55 . . 15 259 Missed 306 | . 30 6 52 . . 9 38 19 . . 8 144 Damage Taken 6422 | . 1014 128 1628 . . 230 1159 715 . . 113 1435 Core 1773 | . 213 8 317 . . 35 235 101 . . 32 832 Absorbed by Shields 61 | . . . . . . . . . . . . 61 Ignored by Resistances 178 | . . . . . . . 29 149 . . . . Regen/Repaired (Parts) 177 | . . . . . . . . . . . 177 . Core Remaining (%) 53 | 100 . 11 . . . 12 57 85 . . . . Volleys Fired 371 | 9 96 16 118 2 . 23 75 25 . . 1 6 Largest 2 | 2 2 2 2 1 . 2 2 2 . . 1 1 Hottest 124 | 70 100 84 124 23 . 104 104 108 . . 36 36 Shots Fired 445 | 18 139 18 130 2 . 25 76 30 . . 1 6 Gun 206 | 18 97 3 49 2 . 20 17 . . . . . Cannon 206 | . 41 15 74 . . 5 41 30 . . . . Launcher 32 | . . . 7 . . . 18 . . . 1 6 Special 1 | . 1 . . . . . . . . . . . Kinetic 165 | 9 68 3 28 2 . 5 29 21 . . . . Thermal 235 | 9 58 15 95 . . 20 29 9 . . . . Explosive 32 | . . . 7 . . . 18 . . . 1 6 Electromagnetic 13 | . 13 . . . . . . . . . . . Robot Hit Streak 15 | 8 14 3 15 1 . 4 11 6 . . . 5 Robot Miss Streak 8 | 2 8 6 3 1 . 4 3 2 . . 1 . Penetration Max . | . . . . . . . . . . . . . Secondary Targets 4 | . 2 . 2 . . . . . . . . . Max Gunslinging Chain 1 | . 1 . 1 . . . . . . . . . Shots Hit Robots 325 | 12 85 8 101 1 . 14 56 26 . . 12 10 Core Hits 178 | 3 34 7 55 1 . 4 46 9 . . 7 12 Critical Kills 1 | . . . 1 . . . . . . . . . Critical Parts Destroyed 1 | . 1 . . . . . . . . . . . Critical Strikes 4 | . 1 . 1 . . 1 1 . . . . . Burn 1 | . . . . . . 1 . . . . . . Destroy 2 | . 1 . 1 . . . . . . . . . Blast 1 | . . . . . . . 1 . . . . . Melee Attacks 43 | . . . . . . . . 12 . . 22 9 Impact . | . . . . . . . . . . . . . Slashing 43 | . . . . . . . . 12 . . 22 9 Piercing . | . . . . . . . . . . . . . Sneak Attacks 8 | . . . . . . . . 1 . . 4 3 Combat Hostiles 2 | . . . . . . . . . . . 1 1 Follow-up Attacks . | . . . . . . . . . . . . . Damage Inflicted 8906 | 150 1077 216 2575 13 . 225 2328 974 . . 834 514 Guns 2039 | 150 667 58 671 13 . 169 311 . . . . . Cannons 2793 | . 350 158 1035 . . 56 648 546 . . . . Explosions 2428 | . 54 . 831 . . . 1368 . . . . 175 Melee 1601 | . . . . . . . . 428 . . 834 339 Ramming 45 | . 6 . 38 . . . 1 . . . . . Kinetic 1926 | 62 433 58 407 13 . 56 544 353 . . . . Thermal 2864 | 88 542 158 1299 . . 169 415 193 . . . . Explosive 2374 | . . . 831 . . . 1368 . . . . 175 Electromagnetic 96 | . 96 . . . . . . . . . . . Impact . | . . . . . . . . . . . . . Slashing 1601 | . . . . . . . . 428 . . 834 339 Piercing . | . . . . . . . . . . . . . Highest Corruption 9 | . 2 2 . . . . . 9 . . . . Average Corruption 3 | . 2 2 . . . . . 5 . . . . Corruption Purged . | . . . . . . . . . . . . . Corruption Blocked . | . . . . . . . . . . . . . Effects 53 | . 6 10 . . . . . 37 . . . . Message Errors 11 | . . 3 . . . . . 8 . . . . Matter Fused 11 | . 3 1 . . . . . 7 . . . . Heat Flow Errors 8 | . 1 3 . . . . . 4 . . . . Energy Discharges 7 | . . 1 . . . . . 6 . . . . Data Loss (minor) 8 | . . 2 . . . . . 6 . . . . Data Loss (major) 1 | . . . . . . . . 1 . . . . Misfires 1 | . 1 . . . . . . . . . . . Alerts 1 | . . . . . . . . 1 . . . . Weapon Failures 5 | . 1 . . . . . . 4 . . . . Overload Shots . | . . . . . . . . . . . . . Overflow Damage 385 | . . . 53 . . . 53 96 . . 170 13 Projectiles 11 | . . . 11 . . . . . . . . . Explosions 92 | . . . 39 . . . 53 . . . . . Melee 282 | . . . 3 . . . . 96 . . 170 13 Knockbacks 7 | . . . . . . . 3 4 . . . . Impact . | . . . . . . . . . . . . . Kinetic 7 | . . . . . . . 3 4 . . . . Secondary . | . . . . . . . . . . . . . Self-Inflicted Damage 111 | . 3 . 69 . . . . . . . 5 34 Shots 4 | . . . 2 . . . . . . . 1 1 Rammed 9 | . 1 . 7 . . . 1 . . . . . Targets Rammed 9 | . 1 . 7 . . . 1 . . . . . Kicked . | . . . . . . . . . . . . . Crushed . | . . . . . . . . . . . . . Highest Temperature 361 | 63 361 251 158 . . 222 48 167 . . . 97 Average Temperature 73 | 26 85 91 38 . . 117 18 86 . . . 59 Received Heat Transfer 1697 | . 414 . 621 . . . 414 . . . 18 230 Effects 2 | . 1 1 . . . . . . . . . . Shutdowns 1 | . 1 . . . . . . . . . . . Energy Bleed 1 | . . 1 . . . . . . . . . . Siege Activations . | . . . . . . . . . . . . . Robots Corrupted 1 | . . . 1 . . . . . . . . . Combat Hostiles 1 | . . . 1 . . . . . . . . . Parts Fried . | . . . . . . . . . . . . . Impact Corruptions 1 | . . . 1 . . . . . . . . . Robots Melted 1 | . . . 1 . . . . . . . . . Combat Hostiles 1 | . . . 1 . . . . . . . . . Parts Melted 14 | . . 1 12 . . 1 . . . . . . Heat Transferred 6081 | 259 1197 333 2775 . . 481 740 296 . . . . Parts Sabotaged . | . . . . . . . . . . . . . Parts Stolen . | . . . . . . . . . . . . . Parts Stripped . | . . . . . . . . . . . . . Power Chain Reactions 1 | . 1 . . . . . . . . . . . Alert | -11 -10 -10 -9 -9 -9 -8 -8 -7 -6 -6 -6 -6 ------- Run | Yrd Mat Min Mat Min Exi Min Mat Fac Fac Was Fac Ext Peak Influence 596 | 15 143 80 596 237 . 125 355 156 22 37 207 133 Initial 232 | . 9 . . 232 . . 48 132 22 7 25 100 Average 117 | 4 49 24 218 106 . 76 246 62 22 20 64 101 Maximum Alert Level 2 | . . . 2 1 . . 1 . . . 1 . Low Security (%) 75 | 100 100 100 61 60 . 100 18 100 100 100 97 100 Level 1 20 | . . . 16 39 . . 81 . . . 2 . Level 2 3 | . . . 22 . . . . . . . . . Level 3 . | . . . . . . . . . . . . . Level 4 . | . . . . . . . . . . . . . Level 5 . | . . . . . . . . . . . . . High Security . | . . . . . . . . . . . . . Max Security . | . . . . . . . . . . . . . Squads Dispatched 27 | . 4 . 9 . . . 3 5 . . 5 1 Investigation 9 | . 2 . 4 . . . 2 . . . 1 . Extermination 4 | . . . . . . . . 3 . . 1 . Reinforcement 13 | . 2 . 4 . . . 1 2 . . 3 1 Assault 1 | . . . 1 . . . . . . . . . Garrison . | . . . . . . . . . . . . . Intercept . | . . . . . . . . . . . . . Searches Triggered . | . . . . . . . . . . . . . Construction Impeded 1 | . . . . . . . . . . . . 1 Haulers Reinforced . | . . . . . . . . . . . . . Active Scanning Responses . | . . . . . . . . . . . . . Cargo Convoy Interrupts . | . . . . . . . . . . . . . Stealth | -11 -10 -10 -9 -9 -9 -8 -8 -7 -6 -6 -6 -6 --------- Run | Yrd Mat Min Mat Min Exi Min Mat Fac Fac Was Fac Ext Distress Signals 9 | . 1 . 3 . . . 2 2 . . . 1 Communications Jammed . | . . . . . . . . . . . . . Distress Signals . | . . . . . . . . . . . . . Times Spotted 148 | . 25 3 42 . . 5 34 15 . 5 9 10 Peak Tracking Total 10 | . 5 1 5 . . 4 5 5 . 6 3 10 Tactical Retreats 8 | . . . . . . 1 2 3 . . 2 . Traps | -11 -10 -10 -9 -9 -9 -8 -8 -7 -6 -6 -6 -6 ------- Run | Yrd Mat Min Mat Min Exi Min Mat Fac Fac Was Fac Ext Traps Triggered 13 | . 2 . 2 . . . 1 2 1 . 1 4 Indirectly . | . . . . . . . . . . . . . Trap Hack Attempts . | . . . . . . . . . . . . . Triggered . | . . . . . . . . . . . . . Disarmed . | . . . . . . . . . . . . . Reprogrammed . | . . . . . . . . . . . . . Reused . | . . . . . . . . . . . . . Traps Extracted . | . . . . . . . . . . . . . Installed . | . . . . . . . . . . . . . Triggered . | . . . . . . . . . . . . . Machines | -11 -10 -10 -9 -9 -9 -8 -8 -7 -6 -6 -6 -6 ---------- Run | Yrd Mat Min Mat Min Exi Min Mat Fac Fac Was Fac Ext Machines Disabled 15 | . 1 . 5 . . 2 4 1 . . 2 . Max in Single Turn 2 | . 1 . 2 . . 1 1 1 . . 1 . Machines Repaired . | . . . . . . . . . . . . . Machines Dismantled . | . . . . . . . . . . . . . Machines Sabotaged . | . . . . . . . . . . . . . Overloaded Fab Kills . | . . . . . . . . . . . . . Hacking | -11 -10 -10 -9 -9 -9 -8 -8 -7 -6 -6 -6 -6 --------- Run | Yrd Mat Min Mat Min Exi Min Mat Fac Fac Was Fac Ext Machines Accessed 45 | . 8 1 9 1 1 . 5 7 . . 10 3 Terminals 31 | . 6 1 6 . . . 5 6 . . 5 2 Fabricators 1 | . . . . . . . . . . . 1 . Repair Stations 5 | . 1 . 1 . . . . . . . 3 . Recycling Units 4 | . 1 . . . . . . 1 . . 1 1 Scanalyzers 2 | . . . 2 . . . . . . . . . Garrison Access . | . . . . . . . . . . . . . Total Hacks 110 | . 22 2 31 1 1 . 14 13 . . 22 4 Successful 63 | . 11 1 19 1 1 . 7 6 . . 15 2 Failed 47 | . 11 1 12 . . . 7 7 . . 7 2 Catastrophic 10 | . 4 . 1 . . . 3 2 . . . . Database Lockouts . | . . . . . . . . . . . . . Manual 70 | . 18 . 16 . 1 . 13 12 . . 10 . Terminals 85 | . 18 2 24 . . . 14 12 . . 12 3 Fabricators 1 | . . . . . . . . . . . 1 . Repair Stations 12 | . 2 . 2 . . . . . . . 8 . Recycling Units 5 | . 2 . . . . . . 1 . . 1 1 Scanalyzers 5 | . . . 5 . . . . . . . . . Garrison Access . | . . . . . . . . . . . . . Terminal Hacks 24 | . 4 1 7 1 1 . 2 2 . . 4 2 Prototype ID Bank 2 | . . . 1 . . . 1 . . . . . Open Door 4 | . . . . 1 . . . . . . 1 2 Open DSF 1 | . . . . . . . . . . . 1 . Branch Access Points 1 | . . . 1 . . . . . . . . . Terminal Index 3 | . 1 . 1 . . . . . . . 1 . Alert Level 3 | . . . 1 . . . . 1 . . 1 . Unreport Threat 2 | . 1 . . . . . . 1 . . . . Locate Traps 3 | . 1 . 2 . . . . . . . . . Dispatch Records 1 | . . . . . . . 1 . . . . . Zone Layout 3 | . 1 1 1 . . . . . . . . . Derelict Proto ID Bank 1 | . . . . . 1 . . . . . . . Fabricator Hacks 1 | . . . . . . . . . . . 1 . Network Status 1 | . . . . . . . . . . . 1 . Repair Station Hacks 10 | . 1 . 1 . . . . . . . 8 . Scan Component 6 | . 1 . 1 . . . . . . . 4 . Repair 4 | . . . . . . . . . . . 4 . Recycling Unit Hacks 2 | . 1 . . . . . . . . . 1 . Report Inventory 2 | . 1 . . . . . . . . . 1 . Scanalyzer 5 | . . . 5 . . . . . . . . . Insert Component 2 | . . . 2 . . . . . . . . . Analyze 3 | . . . 3 . . . . . . . . . Garrison Access Hacks . | . . . . . . . . . . . . . Unauthorized Hacks 21 | . 5 . 6 . . . 5 4 . . 1 . Terminals 20 | . 4 . 6 . . . 5 4 . . 1 . Assimilate 1 | . . . . . . . 1 . . . . . Botnet 19 | . 4 . 6 . . . 4 4 . . 1 . Fabricators . | . . . . . . . . . . . . . Repair Stations . | . . . . . . . . . . . . . Recycling Units 1 | . 1 . . . . . . . . . . . Reject 1 | . 1 . . . . . . . . . . . Scanalyzers . | . . . . . . . . . . . . . Garrison Access . | . . . . . . . . . . . . . Data Cores Recovered 1 | . . . . . . . . 1 . . . . Used . | . . . . . . . . . . . . . Hacking Detections 36 | . 8 1 9 . . . 5 7 . . 4 2 Full Trace Events 5 | . 1 . 2 . . . 2 . . . . . Feedback Events . | . . . . . . . . . . . . . Feedback Blocked . | . . . . . . . . . . . . . Robot Schematics Acquired . | . . . . . . . . . . . . . Robots Built . | . . . . . . . . . . . . . Authchips . | . . . . . . . . . . . . . Time . | . . . . . . . . . . . . . Total Robot Build Rating . | . . . . . . . . . . . . . Part Schematics Acquired 2 | . . . 2 . . . . . . . . . Parts Built . | . . . . . . . . . . . . . Authchips . | . . . . . . . . . . . . . Time . | . . . . . . . . . . . . . Total Part Build Rating . | . . . . . . . . . . . . . Parts Repaired 4 | . . . . . . . . . . . 4 . Time 180 | . . . . . . . . . . . 180 . Parts Recycled . | . . . . . . . . . . . . . Recycled Matter . | . . . . . . . . . . . . . Retrieved Matter . | . . . . . . . . . . . . . Retrieved Components . | . . . . . . . . . . . . . Parts Scanalyzed 2 | . . . 2 . . . . . . . . . Part Schematics Acquired 2 | . . . 2 . . . . . . . . . Parts Damaged . | . . . . . . . . . . . . . Bothacking | -11 -10 -10 -9 -9 -9 -8 -8 -7 -6 -6 -6 -6 ------------ Run | Yrd Mat Min Mat Min Exi Min Mat Fac Fac Was Fac Ext Used RIF Installer . | . . . . . . . . . . . . . Robots Hacked . | . . . . . . . . . . . . . Non-combat . | . . . . . . . . . . . . . Combat . | . . . . . . . . . . . . . Robot Hacks Applied . | . . . . . . . . . . . . . Relay Couplers Released . | . . . . . . . . . . . . . Fabnet Peak Effective % . | . . . . . . . . . . . . . Robots Rewired . | . . . . . . . . . . . . . Allies Hacked . | . . . . . . . . . . . . . Hacks Repelled . | . . . . . . . . . . . . . Allies | -11 -10 -10 -9 -9 -9 -8 -8 -7 -6 -6 -6 -6 -------- Run | Yrd Mat Min Mat Min Exi Min Mat Fac Fac Was Fac Ext Total Allies 7 | . . 3 . . . . 1 . . . . 3 Largest Group 3 | . . 3 3 . . . 1 . . . . 2 Highest-Rated Group 51 | . . 40 40 . . . 16 . . . . 51 Highest-Rated Ally 31 | . . 16 16 . . . 16 . . . . 31 Total Orders 6 | . . . . 4 . . 2 . . . . . ROAM 1 | . . . . 1 . . . . . . . . FOLLOW 2 | . . . . 1 . . 1 . . . . . EXPLORE 2 | . . . . 1 . . 1 . . . . . RETURN 1 | . . . . 1 . . . . . . . . Ally Attacks 53 | . . . 27 . . . 20 . . . . 6 Total Damage 557 | . . . 345 . . . 64 . . . . 148 Kills 4 | . . . 3 . . . 1 . . . . . Allies Corrupted . | . . . . . . . . . . . . . Allies Melted . | . . . . . . . . . . . . . Intel | -11 -10 -10 -9 -9 -9 -8 -8 -7 -6 -6 -6 -6 ------- Run | Yrd Mat Min Mat Min Exi Min Mat Fac Fac Was Fac Ext Robot Analysis Total . | . . . . . . . . . . . . . Derelict Logs Recovered 2 | . . 1 . 1 . . . . . . . . Drone Launches 25 | . . . . 3 . . 22 . . . . . Drone Recoveries 21 | . . . . 3 . . 18 . . . . . Exploration | -11 -10 -10 -9 -9 -9 -8 -8 -7 -6 -6 -6 -6 ------------- Run | Yrd Mat Min Mat Min Exi Min Mat Fac Fac Was Fac Ext Turns Passed 9156 | 120 1643 920 1440 1017 372 97 1430 1309 14 22 571 201 Spaces Moved 5907 | 78 934 616 740 450 226 32 582 873 46 73 881 376 Core 10 | 2 . . . . . . . . . . . 8 Treads 619 | . 256 . 203 80 . . 80 . . . . . Legs . | . . . . . . . . . . . . . Wheels 3583 | 76 678 616 537 370 226 32 502 546 . . . . Hover . | . . . . . . . . . . . . . Flight 1695 | . . . . . . . . 327 46 73 881 368 Fastest Speed 5 | 50 100 140 130 145 165 150 150 26 29 29 20 5 Average Speed 123 | 98 143 140 152 171 165 150 198 135 29 29 23 23 Slowest Speed 400 | 100 240 140 320 240 165 150 400 200 29 29 29 200 Overloaded Moves 63 | . . . . . . . . . . . . 63 Propulsion Burnouts . | . . . . . . . . . . . . . Robots Hopped 14 | . . . . . . . . 2 . . 3 9 Cave-ins Triggered . | . . . . . . . . . . . . . Exploration Rate (%) 49 | 6 83 89 67 96 61 12 56 31 2 68 24 46 Regions Visited 12 Branch Regions 5 Pre-discovered Areas . | . . . . . . . . . . . . . Known Exits Taken 7 | . 1 1 1 1 1 1 1 . . . . . Unknown Exits Taken 3 | 1 . . . . . . . 1 . . 1 . Scrap Searched 4 | . . 2 . 2 . . . . . . . . Spaces Dug 17 | . 1 . . . . . . 5 . . 8 3 Terrain Destroyed 196 | . 4 . 42 . . . 109 7 . . 12 22 Melee 11 | . . . . . . . . 3 . . 8 . Projectile 7 | . 1 . . . . . 2 4 . . . . AOE 178 | . 3 . 42 . . . 107 . . . 4 22 Terrain Rammed . | . . . . . . . . . . . . . Walls Destroyed . | . . . . . . . . . . . . . Machines Disabled . | . . . . . . . . . . . . . Actions | -11 -10 -10 -9 -9 -9 -8 -8 -7 -6 -6 -6 -6 --------- Run | Yrd Mat Min Mat Min Exi Min Mat Fac Fac Was Fac Ext Total 7306 | 99 1099 664 916 693 227 56 786 966 46 73 1217 464 Wait 668 | . 33 14 4 231 . 1 82 8 . . 273 22 Move 5870 | 77 933 615 739 449 225 31 581 868 46 72 874 360 Hop 12 | . . . . . . . . 2 . . 3 7 Pick Up 68 | 5 15 7 12 2 1 . 13 8 . 1 3 1 Fast Attach 35 | 6 2 . 7 1 . . 5 3 . . 11 . Attach 27 | . 6 . 4 . . . 4 8 . . . 5 Detach 8 | . 1 . . . . . . 4 . . 1 2 Swap 65 | 2 10 3 12 3 . 1 11 8 . . 13 2 Drop 81 | . 2 9 13 5 1 . 14 20 . . 16 1 Fire 371 | 9 96 16 118 2 . 23 75 25 . . 1 6 Melee 43 | . . . . . . . . 12 . . 22 9 Ram 2 | . 1 . . . . . 1 . . . . . Kick . | . . . . . . . . . . . . . Crush 7 | . . . 7 . . . . . . . . . Escape Stasis 49 | . . . . . . . . . . . . 49 Rewire . | . . . . . . . . . . . . . Trap . | . . . . . . . . . . . . . Miscellaneous . | . . . . . . . . . . . . . Route ------- -11/Scrapyard -10/Materials (discovered 4 exits: *Mat x3 / *Min) -10/Mines (discovered 2 exits: *Mat x2) -9/Materials (discovered 3 exits: *Mat / *Min x2) -9/Mines (discovered 3 exits: *Mat x2 / *Exi) -9/Exiles -8/Mines -8/Materials -7/Factory (discovered 2 exits: [*Fac] / *Sto) -6/Factory -6/Waste -6/Factory (discovered 3 exits: [*Fac] / [*Low] / *Ext) -6/Extension History --------- Turn | Location | Event 15 | -11/Scrapyard | Discovered new exit (range 15) 121 | -11/Scrapyard | Entered Materials 260 | -10/Materials | Lost 3 parts (1p2w) 307 | -10/Materials | Build established: Mutant 412 | -10/Materials | Core integrity fell below 50% 475 | -10/Materials | Discovered new exit (range 13) 845 | -10/Materials | Discovered new exit (range 9) 921 | -10/Materials | Build established: Scavenger-Mutant 994 | -10/Materials | Discovered new exit (range 3) 1003 | -10/Materials | Identified exit to Materials 1140 | -10/Materials | Identified exit to Mines 1365 | -10/Materials | Discovered exit to Materials (range 5) 1563 | -10/Materials | Core integrity fell below 20% 1764 | -10/Materials | Entered Mines 1780 | -10/Mines | Met a Derelict bent on vengeance 1792 | -10/Mines | A weapon hastily lodged in a ceiling crevice suddenly fell to the ground 2035 | -10/Mines | Learned Materials garrison access intel 2087 | -10/Mines | Build established: Mutant 2150 | -10/Mines | Discovered exit to Materials (range 6) 2449 | -10/Mines | Assisted by bots powering up and referring to "LRC-V3" 2645 | -10/Mines | Discovered exit to Materials (range 7) 2684 | -10/Mines | Entered Materials 2684 | -9/Materials | Accompanied by 3 allies 2684 | -9/Materials | Evolved 2 slots: Propulsion x1, Utility x1 2866 | -9/Materials | Lost 3 allies 2884 | -9/Materials | Identified exit to Mines 3071 | -9/Materials | Build established: Scavenger-Mutant 3242 | -9/Materials | Discovered new exit (range 9) 3680 | -9/Materials | Core integrity fell below 50% 3884 | -9/Materials | First assault squad dispatched 4124 | -9/Materials | Entered Mines 4212 | -9/Mines | YI-UF0 nonchalantly dropped a Grenade Launcher on the ground 4392 | -9/Mines | Assembled infested the area 4801 | -9/Mines | Found the Drone Emporium 4805 | -9/Mines | Learned Materials terminal intel 4809 | -9/Mines | Found Prototype Device 4810 | -9/Mines | Identified Splice Drone Bay 4913 | -9/Mines | Discovered new exit (range 34) 4916 | -9/Mines | Discovered new exit (range 37) 4930 | -9/Mines | Discovered new exit (range 49) 5138 | -9/Mines | Identified exit to Exiles 5141 | -9/Mines | Entered Exiles 5181 | -9/Exiles | Met 8R-AWN 5209 | -9/Exiles | Met EX-HEX 5262 | -9/Exiles | Met EX-BIN 5282 | -9/Exiles | Aligned with FarCom system 5283 | -9/Exiles | Given EX-Vault access code 5328 | -9/Exiles | Opened EX-Vault 5336 | -9/Exiles | Found Longsword +1 5373 | -9/Exiles | Warned to stay clear of 0b10 Research branches 5429 | -9/Exiles | Met EX-DEC 5488 | -9/Exiles | Discovered new exit (range 10) 5500 | -9/Exiles | Identified exit to Mines 5513 | -9/Exiles | Left Exiles lab with Longsword +1 5513 | -9/Exiles | Entered Mines 5516 | -8/Mines | Core integrity fell below 20% 5567 | -8/Mines | Discovered new exit (range 13) 5609 | -8/Mines | Identified exit to Materials 5610 | -8/Mines | Entered Materials 5610 | -8/Materials | Evolved 2 slots: Utility x2 5611 | -8/Materials | Loaded intel: 12 terminal locations 5612 | -8/Materials | Loaded intel: 1 garrison access location 5817 | -8/Materials | Build established: Mutant 6427 | -8/Materials | Build established: Scavenger-Mutant 6448 | -8/Materials | Lost 3 allies 7032 | -8/Materials | Discovered new exit (range 3) 7038 | -8/Materials | Identified exit to Factory 7040 | -8/Materials | Entered Factory 7040 | -7/Factory | Evolved 2 slots: Propulsion x2 7932 | -7/Factory | Discovered new exit (range 3) 7942 | -7/Factory | Identified exit to Storage 8344 | -7/Factory | Discovered new exit (range 15) 8349 | -7/Factory | Entered another Factory area 8349 | -6/Factory | Evolved 2 slots: Propulsion x1, Utility x1 8363 | -6/Factory | Sucked down chute 8363 | -6/Factory | Entered Waste 8369 | -6/Waste | Spotted C-40 Crusher 8377 | -6/Waste | Spotted C-40 Crusher 8377 | -6/Waste | Spotted C-40 Crusher 8378 | -6/Waste | Spotted C-40 Crusher 8380 | -6/Waste | Discovered new exit (range 15) 8381 | -6/Waste | Spotted C-40 Crusher 8385 | -6/Waste | Entered Factory 8474 | -6/Factory | Repaired Impulse Thruster 8514 | -6/Factory | Repaired Missile Launcher 8552 | -6/Factory | Repaired Imp. VTOL Module 8617 | -6/Factory | Discovered new exit (range 7) 8633 | -6/Factory | Build established: Hacker-Scout 8670 | -6/Factory | Repaired Adv. Heat Sink 8791 | -6/Factory | Spotted B-75 Beast 8801 | -6/Factory | Discovered new exit (range 11) 8953 | -6/Factory | Discovered new exit (range 6) 8956 | -6/Factory | Entered Extension 9023 | -6/Extension | Rescued a captive Derelict 9024 | -6/Extension | Rescued a captive Derelict 9073 | -6/Extension | Rescued a captive Derelict 9073 | -6/Extension | Rescued a captive Derelict 9117 | -6/Extension | Spotted B-75 Beast 9118 | -6/Extension | Spotted B-75 Beast 9146 | -6/Extension | Core integrity fell below 50% 9153 | -6/Extension | Core integrity fell below 20% 9157 | -6/Extension | Destroyed by B-75 Beast with Heavy Plasma Cannon Last Messages --------------- 09136_ U-05 Engineer builds a Wall. 09136_ K-01 Serf destroyed. 09137_ Penetrated by Slug. 09137_ Cld. Cesium-ion Thruster destroyed. 09138_ Door Terminal disabled. 09139_ Penetrated by Slug. 09139_ Slug penetrates B-75 Beast. 09140_ Penetrated by Slug. 09140_ Imp. Hacking Suite destroyed. 09142_ Imp. Reaction Control System destroyed. 09143_ Slug penetrates Wall. 09145_ Penetrated by Slug. 09145_ Adv. Heat Sink destroyed. 09146_ Knocked back. 09146_ Penetrated by Slug. 09151_ Slug penetrates Reinforced Barrier. 09152_ Penetrated by Slug. 09152_ Longsword +1 destroyed. 09156_ Penetrated by Slug. 09156_ Missile Launcher destroyed. Map ----- +----------------------------------------------------+ | ???????????????????### #?????????????????????????? | | ?????????????????### # #?????????????????????????? | | ?????????????????# #?????????????????????????? | | ?????????????????# # #?????????????????????????? | | ?????????????????###T# #?????????????????????????? | | ???????????????????### #?????????????????????????? | | ?????????????????????# #??##?##??????????????????? | | ???????????????????### ### ## ### ???????????????? | | ???????????????????#"" "" "" "??????????????? | | ???????????????????# Y" " " ?????????????? | | ??????????????????## Y #????????????? | | ??????????###?#####" #????????????? | | ####"##########"##;; h #????????????? | | h ???????????? | | w ???????????? | | !% R ??????????? | | *!= BB = ??????????? | | !*%= Bu ??????????? | | ###############"#### BB #????????????? | | ??????????????###?## BB #????????????? | | ???????????????????# % #????????????? | | ???????????????????# #????????????? | | ???????????????????# YY #????????????? | | ???????????????????#### #"""#######????????????? | | ??????????????????????# #??????????????????????? | | ??????????????????????# @#??????????????????????? | | | | | | | | | | | | | | | | | | | | | | | | | | | | | | | | | | | | | | | | | | | | | | | | | +----------------------------------------------------+ Best States ------------- Heat Dissipation 61 Energy Generation 18 Energy Capacity 325 Matter Stores 300 Matter Capacity 300 Sight Range 20 Terrain Scan Range 16 Terrain Scan Density 110 Armor Coverage 450 Resistance: KI 30 Evasion (%) 75 Recoil Reduction 4 Offensive Hacking 32 Item Schematics ----------------- Lgt. Treads | -9/Materials | Scanalyzed Cld. Ion Engine | -9/Materials | Scanalyzed Robot Schematics ------------------ None Fabricated ------------ Nothing Alien Tech Used ----------------- None Achievements -------------- Factory Defaults Speed Demon Supersonic Whoosh! Challenges ------------ None Game ------ Seed TargetScatterPit Manual? 0 Play Time 01:15:09 Cumulative 80.3 hours Start 2024.11.27 @ 17:46:14 End 2024.11.27 @ 19:10:32 Sessions 1 Manual Loads 0 Difficulty Rogue Special Mode None Game No. 103 Rogue 59 Adventurer 44 Explorer 0 Win Type - Total 0 Types 0/0/0/0/0/0/0/0/0 Lore% 21 Gallery% 48 Achievement% 37 Wizard Run 0 Options --------- Layout 1 ASCII 0 Keyboard 1 Movement Vi Keybinds 0 Fullscreen 1 Font 24/Terminus Map View 50x40 Zoom Use 0% Tactical HUD 1 Map Filters NONE Filters NONE Steam 1 RUN: bc09a6bd-280c-49ca-a87b-06c940503959